[Event "Championnat d'Europe Rapide"]
[Date "2024.12.07"]
[White "Samunenkov, Ihor"]
[Black "Stoinev, Metodi"]
[WhiteElo "2543"]
[BlackElo "2132"]
[Round "4.41"]
[Result "1-0"]
[TimeControl "900+10"]

1. d4 {[%emt 00:00:04] [%clk 00:15:15]} d5 {[%emt 00:00:03] [%clk 00:15:17]} 2.
c4 {[%emt 00:00:04] [%clk 00:15:23]} e6 {[%emt 00:00:02] [%clk 00:15:24]} 3. Nc3
{[%emt 00:00:04] [%clk 00:15:29]} Nf6 {[%emt 00:00:02] [%clk 00:15:31]} 4. cxd5
{[%emt 00:00:04] [%clk 00:15:36]} exd5 {[%emt 00:00:02] [%clk 00:15:38]} 5. Bg5
{[%emt 00:00:03] [%clk 00:15:42]} Nbd7 {[%emt 00:00:07] [%clk 00:15:41]} 6. e3
{[%emt 00:00:04] [%clk 00:15:49]} c6 {[%emt 00:00:02] [%clk 00:15:49]} 7. Bd3
{[%emt 00:00:04] [%clk 00:15:55]} Be7 {[%emt 00:00:07] [%clk 00:15:51]} 8. Nf3
{[%emt 00:00:04] [%clk 00:16:02]} O-O {[%emt 00:00:10] [%clk 00:15:51]} 9. O-O
{[%emt 00:00:04] [%clk 00:16:08]} Re8 {[%emt 00:00:07] [%clk 00:15:54]} 10. Qc2
{[%emt 00:00:03] [%clk 00:16:14]} Nf8 {[%emt 00:00:07] [%clk 00:15:57]} 11. h3
{[%emt 00:00:05] [%clk 00:16:19]} Bd6 {[%emt 00:02:19] [%clk 00:13:49]} 12. Rae1
{[%emt 00:02:23] [%clk 00:14:06]} Be6 {[%emt 00:01:16] [%clk 00:12:43]} 13. Ne5
{[%emt 00:02:24] [%clk 00:11:52]} Rc8 {[%emt 00:02:24] [%clk 00:10:29]} 14. f4
{[%emt 00:00:58] [%clk 00:11:05]} Bd7 {[%emt 00:00:01] [%clk 00:10:38]} 15. Nxd7
{[%emt 00:00:28] [%clk 00:10:47]} Qxd7 {[%emt 00:00:25] [%clk 00:10:22]} 16.
Bxf6 {[%emt 00:01:55] [%clk 00:09:02]} gxf6 {[%emt 00:00:05] [%clk 00:10:27]}
17. Bf5 {[%emt 00:00:03] [%clk 00:09:09]} Ne6 {[%emt 00:00:12] [%clk 00:10:26]}
18. Qf2 {[%emt 00:01:23] [%clk 00:07:55]} Bf8 {[%emt 00:02:49] [%clk 00:07:47]}
19. Qh4 {[%emt 00:00:32] [%clk 00:07:33]} h6 {[%emt 00:00:04] [%clk 00:07:53]}
20. Ne2 {[%emt 00:00:05] [%clk 00:07:39]} Bg7 {[%emt 00:00:25] [%clk 00:07:38]}
21. Ng3 {[%emt 00:00:06] [%clk 00:07:43]} Qe7 {[%emt 00:00:55] [%clk 00:06:53]}
22. Nh5 {[%emt 00:00:11] [%clk 00:07:42]} Rc7 {[%emt 00:00:01] [%clk 00:07:02]}
23. Rd1 {[%emt 00:02:46] [%clk 00:05:05]} Nf8 {[%emt 00:02:14] [%clk 00:04:59]}
24. Rf3 {[%emt 00:00:22] [%clk 00:04:53]} Ng6 {[%emt 00:00:01] [%clk 00:05:08]}
25. Qg4 {[%emt 00:00:03] [%clk 00:04:59]} Kh8 {[%emt 00:00:21] [%clk 00:04:57]}
26. Nxg7 {[%emt 00:01:02] [%clk 00:04:07]} Kxg7 {[%emt 00:00:01] [%clk
00:05:06]} 27. Rg3 {[%emt 00:00:04] [%clk 00:04:13]} h5 {[%emt 00:00:44] [%clk
00:04:32]} 28. Qxh5 {[%emt 00:00:07] [%clk 00:04:17]} Rh8 {[%clk 00:04:41]} 29.
Qg4 {[%emt 00:00:34] [%clk 00:03:53]} Rh6 {[%emt 00:00:07] [%clk 00:04:44]} 30.
h4 {[%emt 00:00:05] [%clk 00:03:58]} Qf8 {[%emt 00:01:27] [%clk 00:03:27]} 31.
h5 {[%emt 00:00:16] [%clk 00:03:52]} Qh8 {[%clk 00:03:37]} 32. hxg6 {[%emt
00:00:04] [%clk 00:03:58]} Rh4 {[%emt 00:00:30] [%clk 00:03:17]} 33. Qf3 {[%emt
00:00:09] [%clk 00:03:58]} Re7 {[%emt 00:00:14] [%clk 00:03:13]} 34. Kf2 {[%emt
00:00:22] [%clk 00:03:47]} 1-0

[Site "Europe Echecs"]

[Event "Championnat d'Europe Rapide"]
[Date "2024.12.07"]
[White "Alienkin, Aleksander"]
[Black "Aliyev, Elnur"]
[WhiteElo "2337"]
[BlackElo "2079"]
[Round "4.42"]
[Result "1/2-1/2"]
[TimeControl "900+10"]

1. d4 {[%emt 00:00:04] [%clk 00:15:15]} Nf6 {[%emt 00:00:03] [%clk 00:15:18]} 2.
Nf3 {[%emt 00:00:04] [%clk 00:15:21]} e6 {[%emt 00:00:10] [%clk 00:15:18]} 3. c4
{[%emt 00:00:06] [%clk 00:15:25]} d5 {[%emt 00:00:03] [%clk 00:15:25]} 4. g3
{[%emt 00:00:06] [%clk 00:15:28]} Nc6 {[%emt 00:00:02] [%clk 00:15:33]} 5. Bg2
{[%emt 00:00:16] [%clk 00:15:22]} Rb8 {[%emt 00:00:09] [%clk 00:15:34]} 6. Nbd2
{[%emt 00:00:55] [%clk 00:14:37]} Be7 {[%emt 00:00:03] [%clk 00:15:42]} 7. O-O
{[%emt 00:00:09]} O-O {[%clk 00:15:49]} 8. b3 {[%emt 00:00:20] [%clk 00:14:30]}
b5 {[%emt 00:00:02] [%clk 00:15:57]} 9. cxd5 {[%emt 00:00:33] [%clk 00:14:07]}
exd5 {[%emt 00:00:16] [%clk 00:15:51]} 10. Bb2 {[%emt 00:00:09] [%clk 00:14:08]}
a5 {[%emt 00:01:26] [%clk 00:14:34]} 11. Rc1 {[%emt 00:00:34] [%clk 00:13:44]}
Rb6 {[%emt 00:00:47]} 12. Ne5 {[%clk 00:13:08]} Qe8 {[%emt 00:00:02] [%clk
00:14:51]} 13. Qc2 {[%emt 00:01:25] [%clk 00:11:52]} Bb7 {[%emt 00:02:03] [%clk
00:12:58]} 14. Rfe1 {[%emt 00:01:10] [%clk 00:10:51]} Bd6 {[%emt 00:00:44] [%clk
00:12:25]} 15. f4 {[%emt 00:00:20] [%clk 00:10:42]} a4 {[%emt 00:00:40] [%clk
00:11:55]} 16. bxa4 {[%emt 00:03:26] [%clk 00:07:26]} bxa4 {[%emt 00:00:07]
[%clk 00:11:58]} 17. Bc3 {[%emt 00:00:21] [%clk 00:07:14]} Nb4 {[%emt 00:01:02]
[%clk 00:11:06]} 18. Bxb4 {[%emt 00:00:07] [%clk 00:07:18]} Rxb4 {[%emt
00:00:17] [%clk 00:10:58]} 19. e3 {[%emt 00:01:11] [%clk 00:06:17]} Ba6 {[%emt
00:01:59] [%clk 00:09:08]} 20. Bf1 {[%emt 00:01:28] [%clk 00:05:00]} Qa8 {[%emt
00:01:59] [%clk 00:07:19]} 21. Rb1 {[%emt 00:01:02] [%clk 00:04:09]} Rc8 {[%emt
00:01:37] [%clk 00:05:51]} 22. Nc6 {[%emt 00:01:00] [%clk 00:03:18]} Rb6 {[%emt
00:01:11] [%clk 00:04:52]} 23. Rec1 {[%emt 00:00:17] [%clk 00:03:09]} Bc4 {[%emt
00:01:49] [%clk 00:03:15]} 24. Ne5 {[%emt 00:00:38] [%clk 00:02:39]} Rxb1 {[%emt
00:00:15] [%clk 00:03:12]} 25. Rxb1 {[%emt 00:00:43] [%clk 00:02:05]} Bxf1
{[%emt 00:00:07] [%clk 00:03:16]} 26. Nxf1 {[%emt 00:00:12] [%clk 00:02:02]} c5
{[%emt 00:00:02] [%clk 00:03:24]} 27. dxc5 {[%emt 00:00:17] [%clk 00:01:55]}
Bxc5 {[%emt 00:01:37] [%clk 00:01:57]} 28. Qd3 {[%emt 00:00:23] [%clk 00:01:41]}
h5 {[%emt 00:01:00] [%clk 00:01:08]} 29. h3 {[%emt 00:00:21] [%clk 00:01:30]}
Rb8 {[%emt 00:00:55] [%clk 00:00:24]} 30. Rxb8+ {[%emt 00:00:09] [%clk
00:01:31]} Qxb8 {[%emt 00:00:02] [%clk 00:00:33]} 31. Qc2 {[%emt 00:00:24] [%clk
00:01:15]} Qb6 {[%emt 00:00:15] [%clk 00:00:28]} 32. Kf2 {[%emt 00:00:25] [%clk
00:01:01]} d4 {[%emt 00:00:10] [%clk 00:00:29]} 33. Nc4 {[%emt 00:00:08] [%clk
00:01:02]} dxe3+ {[%emt 00:00:06] [%clk 00:00:33]} 34. Nfxe3 {[%emt 00:00:05]
[%clk 00:01:06]} Qe6 {[%emt 00:00:04] [%clk 00:00:40]} 35. Qxa4 {[%emt 00:00:10]
[%clk 00:01:05]} Qxh3 {[%emt 00:00:13] [%clk 00:00:38]} 36. Qa8+ {[%emt
00:00:13] [%clk 00:01:02]} Kh7 {[%emt 00:00:02] [%clk 00:00:47]} 37. Qc6 {[%emt
00:00:12] [%clk 00:00:59]} Ng4+ {[%emt 00:00:20] [%clk 00:00:37]} 38. Ke2 {[%emt
00:00:10] [%clk 00:00:59]} Bxe3 {[%emt 00:00:27] [%clk 00:00:21]} 39. Qe4+
{[%emt 00:00:14] [%clk 00:00:54]} g6 {[%emt 00:00:06] [%clk 00:00:25]} 40. Nxe3
{[%emt 00:00:05] [%clk 00:00:59]} Qxg3 {[%emt 00:00:08] [%clk 00:00:28]} 41.
Nxg4 {[%emt 00:00:11] [%clk 00:00:57]} Qxg4+ {[%emt 00:00:10] [%clk 00:00:28]}
42. Kf2 {[%emt 00:00:22] [%clk 00:00:46]} h4 {[%emt 00:00:13] [%clk 00:00:25]}
43. Qc4 {[%emt 00:00:13] [%clk 00:00:42]} Qg3+ {[%emt 00:00:04] [%clk 00:00:32]}
44. Ke2 {[%emt 00:00:04] [%clk 00:00:45]} Qg2+ {[%emt 00:00:05] [%clk 00:00:40]}
45. Ke3 {[%emt 00:00:02] [%clk 00:00:54]} Qg1+ {[%emt 00:00:12] [%clk 00:00:38]}
46. Kf3 {[%emt 00:00:04] [%clk 00:01:00]} Qd1+ {[%emt 00:00:17] [%clk 00:00:30]}
47. Kg2 {[%emt 00:00:06] [%clk 00:01:04]} Qg4+ {[%emt 00:00:10] [%clk 00:00:30]}
48. Kf2 {[%emt 00:00:01] [%clk 00:01:13]} Kg8 {[%emt 00:00:12] [%clk 00:00:28]}
49. Qe4 {[%emt 00:00:14] [%clk 00:01:09]} Qg3+ {[%emt 00:00:10] [%clk 00:00:29]}
50. Kf1 {[%emt 00:00:03] [%clk 00:01:15]} Qh3+ {[%emt 00:00:04] [%clk 00:00:35]}
51. Kf2 {[%emt 00:00:01] [%clk 00:01:24]} Qh2+ {[%emt 00:00:02] [%clk 00:00:43]}
52. Kf1 {[%emt 00:00:02] [%clk 00:01:32]} Qxa2 {[%emt 00:00:07] [%clk 00:00:46]}
53. Qe8+ {[%emt 00:00:02] [%clk 00:01:40]} Kh7 {[%emt 00:00:02] [%clk 00:00:54]}
54. Qe7 {[%emt 00:00:03] [%clk 00:01:47]} Qc4+ {[%emt 00:00:12] [%clk 00:00:51]}
55. Kg2 {[%emt 00:00:01] [%clk 00:01:56]} Qxf4 {[%emt 00:00:03] [%clk 00:00:58]}
56. Qf8 {[%emt 00:00:07] [%clk 00:01:58]} g5 {[%emt 00:00:24] [%clk 00:00:45]}
57. Qe8 {[%emt 00:00:06] [%clk 00:02:02]} g4 {[%emt 00:00:04] [%clk 00:00:51]}
58. Qd7 {[%emt 00:00:07] [%clk 00:02:05]} h3+ {[%emt 00:00:09] [%clk 00:00:52]}
59. Kg1 {[%emt 00:00:01] [%clk 00:02:13]} Qg3+ {[%emt 00:00:07] [%clk 00:00:54]}
60. Kf1 {[%clk 00:02:23]} Qg2+ {[%emt 00:00:02] [%clk 00:01:04]} 61. Ke1 {[%emt
00:00:01] [%clk 00:02:32]} Qf3 {[%emt 00:00:13] [%clk 00:01:01]} 62. Qd6 {[%emt
00:00:12] [%clk 00:02:29]} g3 {[%emt 00:00:11] [%clk 00:01:00]} 63. Qd3+ {[%emt
00:00:05] [%clk 00:02:34]} Qxd3 {[%emt 00:00:55] [%clk 00:00:16]} 1/2-1/2

[Site "Europe Echecs"]

[Event "Championnat d'Europe Rapide"]
[Date "2024.12.07"]
[White "Saraci, Nderim"]
[Black "Trajkovski, Mile"]
[WhiteElo "2431"]
[BlackElo "1910"]
[Round "4.43"]
[Result "1-0"]
[TimeControl "900+10"]

1. d4 {[%emt 00:00:01] [%clk 00:15:16]} Nf6 {[%emt 00:00:14] [%clk 00:15:07]} 2.
Nf3 {[%emt 00:00:03] [%clk 00:15:23]} c5 {[%emt 00:00:02] [%clk 00:15:15]} 3. e3
{[%emt 00:00:06] [%clk 00:15:27]} d5 {[%emt 00:00:02] [%clk 00:15:23]} 4. dxc5
{[%emt 00:00:09] [%clk 00:15:28]} Nc6 {[%emt 00:00:03] [%clk 00:15:30]} 5. a3
{[%emt 00:00:09] [%clk 00:15:29]} a5 {[%emt 00:00:09] [%clk 00:15:30]} 6. Nc3
{[%emt 00:00:03] [%clk 00:15:36]} Bg4 {[%emt 00:00:14] [%clk 00:15:26]} 7. Be2
{[%emt 00:00:06] [%clk 00:15:40]} a4 {[%emt 00:00:10] [%clk 00:15:26]} 8. b4
{[%emt 00:01:10] [%clk 00:14:40]} axb3 {[%emt 00:00:08] [%clk 00:15:28]} 9. cxb3
{[%emt 00:00:01] [%clk 00:14:49]} Qa5 {[%emt 00:00:14] [%clk 00:15:24]} 10. Bb2
{[%emt 00:03:47] [%clk 00:11:11]} Qxc5 {[%emt 00:00:07] [%clk 00:15:28]} 11. b4
{[%emt 00:00:39] [%clk 00:10:43]} Qd6 {[%emt 00:01:24] [%clk 00:14:13]} 12. Nb5
{[%emt 00:00:10] [%clk 00:10:44]} Qd7 {[%emt 00:00:23] [%clk 00:13:59]} 13. Ne5
{[%emt 00:01:01] [%clk 00:09:53]} Nxe5 {[%emt 00:00:44] [%clk 00:13:24]} 14.
Bxe5 {[%emt 00:00:03] [%clk 00:10:00]} Bxe2 {[%emt 00:00:07] [%clk 00:13:27]}
15. Qxe2 {[%emt 00:00:04] [%clk 00:10:06]} Rc8 {[%emt 00:00:06] [%clk 00:13:31]}
16. O-O {[%emt 00:00:13] [%clk 00:10:03]} Rc4 {[%emt 00:01:21] [%clk 00:12:20]}
17. Nc7+ {[%emt 00:00:37] [%clk 00:09:37]} Rxc7 {[%emt 00:00:07] [%clk
00:12:23]} 18. Bxc7 {[%emt 00:00:03] [%clk 00:09:45]} Qxc7 {[%emt 00:00:02]
[%clk 00:12:31]} 19. Rfc1 {[%emt 00:00:11] [%clk 00:09:44]} Qd7 {[%emt 00:00:04]
[%clk 00:12:36]} 20. Qc2 {[%emt 00:01:46] [%clk 00:08:08]} g6 {[%emt 00:00:41]
[%clk 00:12:05]} 21. Qc8+ {[%emt 00:00:54] [%clk 00:07:24]} Qxc8 {[%emt
00:00:05] [%clk 00:12:10]} 22. Rxc8+ {[%emt 00:00:01] [%clk 00:07:33]} Kd7
{[%emt 00:00:01] [%clk 00:12:18]} 23. Rac1 {[%emt 00:00:02] [%clk 00:07:41]} Bg7
{[%emt 00:00:06] [%clk 00:12:23]} 24. R8c7+ {[%emt 00:00:03] [%clk 00:07:49]}
Kd6 {[%emt 00:00:13] [%clk 00:12:19]} 25. Rxb7 {[%emt 00:00:03] [%clk 00:07:56]}
Ra8 {[%emt 00:00:01] [%clk 00:12:27]} 26. b5 {[%emt 00:01:30] [%clk 00:06:37]}
Rxa3 {[%emt 00:02:48] [%clk 00:09:49]} 27. Rc6+ {[%emt 00:00:07] [%clk
00:06:39]} Ke5 {[%emt 00:00:02] [%clk 00:09:58]} 28. Rxe7+ {[%emt 00:00:05]
[%clk 00:06:44]} Kf5 {[%emt 00:00:01] [%clk 00:10:06]} 29. h3 {[%emt 00:00:17]
[%clk 00:06:37]} Kg5 {[%emt 00:03:09] [%clk 00:07:06]} 30. Rxf7 {[%emt 00:00:35]
[%clk 00:06:13]} Ra1+ {[%emt 00:01:05] [%clk 00:06:11]} 31. Kh2 {[%emt 00:00:04]
[%clk 00:06:19]} Nh5 {[%emt 00:00:09] [%clk 00:06:12]} 32. g4 {[%emt 00:00:26]
[%clk 00:06:02]} Be5+ {[%emt 00:00:11] [%clk 00:06:11]} 33. Kg2 {[%emt 00:00:03]
[%clk 00:06:08]} Nf6 {[%emt 00:01:19] [%clk 00:05:03]} 34. f4+ {[%emt 00:00:12]
[%clk 00:06:07]} Kh4 {[%emt 00:00:12] [%clk 00:05:00]} 35. Rcxf6 {[%emt
00:00:18] [%clk 00:05:59]} 1-0

[Site "Europe Echecs"]

[Event "Championnat d'Europe Rapide"]
[Date "2024.12.07"]
[White "Galuszka, Tomasz"]
[Black "Papasimakopoulos, Alexandros"]
[WhiteElo "2174"]
[BlackElo "2379"]
[Round "4.44"]
[Result "1-0"]
[TimeControl "900+10"]

1. e4 {[%emt 00:00:03] [%clk 00:15:17]} e6 {[%clk 00:15:20]} 2. d4 {[%emt
00:00:07] [%clk 00:15:23]} d5 {[%clk 00:15:29]} 3. Nd2 {[%clk 00:15:31]} Nf6
{[%emt 00:00:01] [%clk 00:15:38]} 4. e5 {[%emt 00:00:03] [%clk 00:15:38]} Nfd7
{[%clk 00:15:47]} 5. f4 {[%emt 00:00:02] [%clk 00:15:46]} c5 {[%emt 00:00:01]
[%clk 00:15:57]} 6. c3 {[%emt 00:00:01] [%clk 00:15:55]} a5 {[%clk 00:16:06]} 7.
Ndf3 {[%emt 00:00:10] [%clk 00:15:54]} a4 {[%emt 00:00:02] [%clk 00:16:15]} 8.
Bd3 {[%emt 00:00:50] [%clk 00:15:13]} b5 {[%emt 00:00:01] [%clk 00:16:24]} 9.
Ne2 {[%emt 00:00:15] [%clk 00:15:09]} a3 {[%emt 00:00:12] [%clk 00:16:23]} 10.
O-O {[%emt 00:00:37] [%clk 00:14:41]} axb2 {[%emt 00:00:03] [%clk 00:16:30]} 11.
Bxb2 {[%emt 00:00:02] [%clk 00:14:48]} g6 {[%emt 00:00:03] [%clk 00:16:37]} 12.
Bxb5 {[%emt 00:01:46] [%clk 00:13:12]} Ba6 {[%emt 00:00:19] [%clk 00:16:28]} 13.
c4 {[%emt 00:01:19] [%clk 00:12:03]} dxc4 {[%emt 00:00:05] [%clk 00:16:33]} 14.
Bxa6 {[%emt 00:00:01] [%clk 00:12:11]} Nxa6 {[%emt 00:00:31] [%clk 00:16:11]}
15. d5 {[%emt 00:00:04] [%clk 00:12:17]} Nb4 {[%emt 00:00:18] [%clk 00:16:03]}
16. dxe6 {[%emt 00:00:17] [%clk 00:12:11]} fxe6 {[%emt 00:00:02] [%clk
00:16:11]} 17. Ng5 {[%emt 00:00:17] [%clk 00:12:03]} Qb6 {[%emt 00:00:12] [%clk
00:16:10]} 18. f5 {[%emt 00:03:14] [%clk 00:08:59]} gxf5 {[%emt 00:01:23] [%clk
00:14:56]} 19. Nf4 {[%emt 00:00:10] [%clk 00:08:59]} O-O-O {[%emt 00:00:20]
[%clk 00:14:47]} 20. Nf7 {[%emt 00:01:23] [%clk 00:07:46]} Be7 {[%emt 00:00:38]
[%clk 00:14:19]} 21. Nxd8 {[%emt 00:00:42] [%clk 00:07:15]} Rxd8 {[%emt
00:00:08] [%clk 00:14:21]} 22. Qe2 {[%emt 00:00:12] [%clk 00:07:14]} Qa6 {[%emt
00:00:33] [%clk 00:13:58]} 23. Bc3 {[%emt 00:00:23] [%clk 00:07:01]} Nd3 {[%emt
00:00:17] [%clk 00:13:50]} 24. Rad1 {[%emt 00:00:22] [%clk 00:06:49]} Nxf4
{[%emt 00:02:30] [%clk 00:11:30]} 25. Rxf4 {[%emt 00:00:02] [%clk 00:06:58]} Nb6
{[%emt 00:00:02] [%clk 00:11:38]} 26. Rxd8+ {[%emt 00:00:38] [%clk 00:06:30]}
Bxd8 {[%emt 00:00:01] [%clk 00:11:47]} 27. Rf3 {[%emt 00:01:49] [%clk 00:04:51]}
Nd5 {[%emt 00:00:06] [%clk 00:11:50]} 28. Qb2 {[%emt 00:00:20] [%clk 00:04:40]}
Qa4 {[%emt 00:00:27] [%clk 00:11:34]} 29. Rf1 {[%emt 00:00:02] [%clk 00:04:48]}
Bc7 {[%emt 00:01:00] [%clk 00:10:44]} 30. Rb1 {[%emt 00:00:09] [%clk 00:04:50]}
Qc6 {[%emt 00:00:04] [%clk 00:10:49]} 31. Bd2 {[%emt 00:00:59] [%clk 00:04:01]}
Kd7 {[%emt 00:01:07] [%clk 00:09:52]} 32. h3 {[%emt 00:00:27] [%clk 00:03:44]}
h5 {[%emt 00:00:03] [%clk 00:09:59]} 33. Rc1 {[%emt 00:01:12] [%clk 00:02:42]}
Qa4 {[%emt 00:00:06] [%clk 00:10:03]} 34. Bc3 {[%emt 00:00:59] [%clk 00:01:53]}
Kc8 {[%emt 00:00:14] [%clk 00:09:59]} 35. Qe2 {[%emt 00:00:29] [%clk 00:01:34]}
h4 {[%emt 00:00:14] [%clk 00:09:56]} 36. Be1 {[%emt 00:00:15] [%clk 00:01:28]}
c3 {[%emt 00:00:16] [%clk 00:09:50]} 37. Bxc3 {[%emt 00:00:12] [%clk 00:01:26]}
Qf4 {[%emt 00:00:17] [%clk 00:09:44]} 38. Qd2 {[%emt 00:00:54] [%clk 00:00:42]}
Bxe5 {[%emt 00:01:51] [%clk 00:08:03]} 39. Qxf4 {[%emt 00:00:02] [%clk
00:00:50]} Bxf4 {[%emt 00:00:01] [%clk 00:08:12]} 40. Rc2 {[%emt 00:00:02] [%clk
00:00:59]} Kd7 {[%emt 00:00:18] [%clk 00:08:03]} 41. Be1 {[%emt 00:00:03] [%clk
00:01:05]} Bg5 {[%clk 00:08:12]} 42. Bf2 {[%emt 00:00:06] [%clk 00:01:09]} e5
{[%emt 00:00:03] [%clk 00:08:19]} 43. Bxc5 {[%emt 00:00:12] [%clk 00:01:07]} e4
{[%emt 00:00:03] [%clk 00:08:26]} 44. a4 {[%emt 00:00:09] [%clk 00:01:08]} Bd8
{[%emt 00:00:03] [%clk 00:08:33]} 45. Bd4 {[%emt 00:00:28] [%clk 00:00:50]} f4
{[%emt 00:01:18] [%clk 00:07:25]} 46. a5 {[%emt 00:00:07] [%clk 00:00:53]} Nb4
{[%emt 00:00:13] [%clk 00:07:21]} 47. Rc4 {[%emt 00:00:27] [%clk 00:00:36]} Na6
{[%emt 00:01:43] [%clk 00:05:48]} 48. Bb6 {[%emt 00:00:12] [%clk 00:00:34]} Be7
{[%emt 00:00:29] [%clk 00:05:30]} 49. Rxe4 {[%emt 00:00:05] [%clk 00:00:38]} Bd6
{[%emt 00:00:01] [%clk 00:05:39]} 50. Bf2 {[%emt 00:00:09] [%clk 00:00:39]} Bc7
{[%emt 00:00:02] [%clk 00:05:47]} 51. Bxh4 {[%emt 00:00:15] [%clk 00:00:34]} Nc5
{[%clk 00:05:56]} 52. Rc4 {[%emt 00:00:29] [%clk 00:00:15]} Na6 {[%emt 00:00:17]
[%clk 00:05:49]} 53. Be1 {[%emt 00:00:02] [%clk 00:00:23]} Nb8 {[%emt 00:00:06]
[%clk 00:05:53]} 54. Bd2 {[%emt 00:00:03] [%clk 00:00:30]} Na6 {[%emt 00:00:05]
[%clk 00:05:58]} 55. Bxf4 {[%emt 00:00:02] [%clk 00:00:38]} Bxa5 {[%clk
00:06:07]} 56. g4 {[%emt 00:00:04] [%clk 00:00:44]} Nb4 {[%emt 00:00:08] [%clk
00:06:09]} 57. Kg2 {[%emt 00:00:04] [%clk 00:00:50]} Nd5 {[%clk 00:06:18]} 58.
Kf3 {[%emt 00:00:04] [%clk 00:00:56]} Ne7 {[%emt 00:00:16] [%clk 00:06:12]} 59.
h4 {[%emt 00:00:06] [%clk 00:01:01]} Ke6 {[%emt 00:00:03] [%clk 00:06:19]} 60.
Ke4 {[%emt 00:00:03] [%clk 00:01:07]} Ng6 {[%emt 00:00:06] [%clk 00:06:23]} 61.
Rc6+ {[%emt 00:00:04] [%clk 00:01:13]} Kf7 {[%clk 00:06:33]} 62. Bg5 {[%emt
00:00:07] [%clk 00:01:16]} Nf8 {[%emt 00:00:05] [%clk 00:06:38]} 63. Ra6 {[%emt
00:00:14] [%clk 00:01:12]} Bc3 {[%emt 00:00:08] [%clk 00:06:40]} 64. h5 {[%emt
00:00:05] [%clk 00:01:17]} Ne6 {[%emt 00:00:02] [%clk 00:06:49]} 65. Ra7+ {[%emt
00:00:03] [%clk 00:01:24]} Kg8 {[%emt 00:00:02] [%clk 00:06:57]} 66. Kf5 {[%emt
00:00:07] [%clk 00:01:26]} Nf8 {[%emt 00:00:07] [%clk 00:07:00]} 67. Bf6 {[%emt
00:00:17] [%clk 00:01:19]} 1-0

[Site "Europe Echecs"]

[Event "Championnat d'Europe Rapide"]
[Date "2024.12.07"]
[White "Savanovic, Aleksandar"]
[Black "Tisma, Ivan"]
[WhiteElo "2354"]
[BlackElo "1967"]
[Round "4.45"]
[Result "1-0"]
[TimeControl "900+10"]

1. e4 {[%emt 00:00:03] [%clk 00:15:18]} c5 {[%emt 00:00:02] [%clk 00:15:17]} 2.
Nf3 {[%emt 00:00:02] [%clk 00:15:26]} d6 {[%emt 00:00:04] [%clk 00:15:24]} 3. d4
{[%emt 00:00:03] [%clk 00:15:31]} cxd4 {[%emt 00:00:03] [%clk 00:15:31]} 4. Nxd4
{[%emt 00:00:02] [%clk 00:15:39]} Nf6 {[%emt 00:00:03] [%clk 00:15:38]} 5. Nc3
{[%emt 00:00:02] [%clk 00:15:48]} a6 {[%emt 00:00:02] [%clk 00:15:46]} 6. Bg5
{[%emt 00:00:17] [%clk 00:15:40]} Nbd7 {[%emt 00:00:03] [%clk 00:15:53]} 7. Bc4
{[%emt 00:00:08] [%clk 00:15:42]} g6 {[%emt 00:01:44] [%clk 00:14:19]} 8. Qe2
{[%emt 00:01:01] [%clk 00:14:51]} Bg7 {[%emt 00:00:23] [%clk 00:14:07]} 9. O-O-O
{[%emt 00:00:03] [%clk 00:14:56]} O-O {[%emt 00:00:08] [%clk 00:14:10]} 10. Kb1
{[%emt 00:01:18] [%clk 00:13:48]} Qc7 {[%emt 00:00:12] [%clk 00:14:09]} 11. Nd5
{[%emt 00:01:45] [%clk 00:12:12]} Nxd5 {[%emt 00:00:36] [%clk 00:13:43]} 12.
exd5 {[%emt 00:00:02] [%clk 00:12:20]} Nf6 {[%emt 00:00:15] [%clk 00:13:37]} 13.
Rhe1 {[%emt 00:00:17] [%clk 00:12:12]} Re8 {[%emt 00:00:05] [%clk 00:13:43]} 14.
Bb3 {[%emt 00:00:06] [%clk 00:12:17]} Bd7 {[%emt 00:00:23] [%clk 00:13:30]} 15.
h3 {[%emt 00:01:02] [%clk 00:11:25]} Qa5 {[%emt 00:00:51] [%clk 00:12:47]} 16.
f4 {[%emt 00:01:48] [%clk 00:09:49]} Rac8 {[%emt 00:00:31] [%clk 00:12:26]} 17.
g4 {[%emt 00:00:03] [%clk 00:09:55]} Bb5 {[%emt 00:00:36] [%clk 00:11:59]} 18.
Nxb5 {[%emt 00:00:49] [%clk 00:09:18]} axb5 {[%clk 00:12:08]} 19. h4 {[%emt
00:00:13] [%clk 00:09:14]} h6 {[%emt 00:00:47] [%clk 00:11:32]} 20. Bxf6 {[%emt
00:00:02] [%clk 00:09:22]} Bxf6 {[%emt 00:00:01] [%clk 00:11:41]} 21. g5 {[%emt
00:00:01] [%clk 00:09:31]} hxg5 {[%emt 00:00:10] [%clk 00:11:41]} 22. hxg5
{[%emt 00:00:14] [%clk 00:09:26]} Bg7 {[%emt 00:00:02] [%clk 00:11:49]} 23. Qe4
{[%emt 00:00:40] [%clk 00:08:57]} Qb6 {[%emt 00:01:27] [%clk 00:10:32]} 24. f5
{[%emt 00:01:00] [%clk 00:08:06]} Be5 {[%emt 00:01:51] [%clk 00:08:51]} 25. fxg6
{[%emt 00:00:06] [%clk 00:08:10]} Kg7 {[%emt 00:00:09] [%clk 00:08:52]} 26. gxf7
{[%emt 00:00:10] [%clk 00:08:10]} Rh8 {[%emt 00:00:06] [%clk 00:08:56]} 27. Qf5
{[%emt 00:00:53] [%clk 00:07:27]} Rcf8 {[%emt 00:01:04] [%clk 00:08:03]} 28.
Rxe5 {[%emt 00:00:18] [%clk 00:07:19]} dxe5 {[%emt 00:00:07] [%clk 00:08:05]}
29. Qxe5+ {[%emt 00:00:02] [%clk 00:07:27]} Kg6 {[%emt 00:02:01] [%clk
00:06:15]} 30. d6 {[%emt 00:00:10] [%clk 00:07:26]} Qf2 {[%emt 00:03:42] [%clk
00:02:43]} 31. dxe7 {[%emt 00:00:19] [%clk 00:07:17]} Rxf7 {[%emt 00:00:07]
[%clk 00:02:46]} 32. Bxf7+ {[%emt 00:00:22] [%clk 00:07:05]} Qxf7 {[%emt
00:00:04] [%clk 00:02:52]} 33. Qxh8 {[%emt 00:00:03] [%clk 00:07:12]} 1-0

[Site "Europe Echecs"]